fUST/lending_fUST_20240102
["ID","MTS","AMOUNT","RATE_DAILY","PERIOD"]
[309796584,1704144632868,-150.0,0.0003987,7]
[309796585,1704144632878,-150.0,0.0003987,60]
[309796586,1704144632889,-194.83,0.0003987,60]
[309796587,1704144632899,-151.27,0.0003988,60]
[309796588,1704144632910,-150.0,0.0003988,7]
[309796589,1704144632921,-150.0,0.0003988,60]
[309796590,1704144632932,-150.0,0.0003988,60]
[309796591,1704144632943,-1270.83374624,0.00039886,2]
[309796592,1704144632955,-1110.09354053,0.0003989,30]
[309796593,1704144632965,-150.0,0.0003989,60]
[309796594,1704144632975,-150.0,0.0003989,7]
[309796595,1704144632985,-159.0,0.0003989,60]
[309796596,1704144632997,-150.0,0.0003989,60]
[309796597,1704144633007,-150.0,0.0003989,60]
[309796598,1704144633018,-154.84515485,0.00039896,5]
[309796599,1704144633029,-589.93478754,0.00039896,4]
[309796600,1704144633042,-355.28458033,0.00039896,2]
[309796601,1704144633052,-171.39674606,0.00039896,4]
[309796602,1704144633064,-500.0,0.00039896,2]
[309796603,1704144633075,-271.12717189,0.00039896,4]
[309796604,1704144633086,-365.29294367,0.00039896,2]
[309796605,1704144633096,-241.77426621,0.00039896,4]
[309796606,1704144633106,-340.7701854,0.00039897,30]
[309796607,1704144633116,-8494.94391183,0.00039897,4]
[309796660,1704144638805,-500.0,0.00039879,4]
[309796662,1704144638814,-4.51447566,0.00039879,4]
[309796664,1704144638826,-210.87416191,0.00039879,4]
[309796665,1704144638836,-152.65792686,0.00039879,4]
[309796667,1704144638845,-500.0,0.00039879,4]
[309796668,1704144638854,-500.0,0.00039879,4]
[309796675,1704144638863,-301.07936096,0.00039879,4]
[309796677,1704144638948,-500.0,0.00039879,4]
[309796678,1704144638958,-162.04946194,0.00039879,4]
[309796727,1704144641763,-52.23860762,0.00039879,4]
[309796728,1704144641773,-468.08,0.00039888,3]
[309796729,1704144641782,-10462.46770833,0.00039897,4]
[309796730,1704144641791,-585.58900286,0.00039898,4]
[309796731,1704144641801,-154.84515485,0.00039898,4]
[309796732,1704144641810,-3724.61903178,0.00039898,4]
[309796733,1704144641822,-899.82195666,0.00039898,4]
[309796734,1704144642054,-301.87875,0.00039898,4]
[309796784,1704144643607,-306.89174305,0.00039898,4]
[309796790,1704144647108,-5005.49416043,0.00039897,4]
[309796791,1704144647119,-868.98515012,0.00039898,4]
[309796792,1704144647133,-18980.80715538,0.00039898,4]
[309796793,1704144647144,-470.03226476,0.00039898,4]
[309796794,1704144647156,-1208.40884418,0.00039898,4]
[309796795,1704144647166,-253.03689703,0.00039898,4]
[309796796,1704144647178,-8433.38805163,0.00039898,4]
[309796797,1704144647189,-274.05362151,0.00039898,4]
[309796798,1704144647200,-2030.51263553,0.00039898,4]
[309796799,1704144647211,-11091.88764432,0.00039898,4]
[309796800,1704144647222,-2334.19339693,0.00039898,2]
[309796801,1704144647234,-2988.35569045,0.00039898,4]
[309796802,1704144647245,-160.24220929,0.00039898,4]
[309796803,1704144647256,-9890.87127788,0.00039898,2]
[309796804,1704144647267,-158.01053264,0.00039898,20]
[309796805,1704144647278,-1192.14975865,0.00039898,4]
[309796806,1704144647289,-164.5181572,0.00039898,4]
[309796807,1704144647299,-607.53,0.00039898,61]
[309796808,1704144647310,-761.52370578,0.00039898,2]
[309796809,1704144647321,-370.17781629,0.00039898,2]
[309796810,1704144647331,-520.18547775,0.00039899,14]
[309796811,1704144647342,-175.0,0.0003997,60]
[309796812,1704144647353,-175.0,0.0003998,60]
[309796813,1704144647364,-4029.10026796,0.0003999,4]
[309796814,1704144647375,-175.0,0.0003999,60]
[309796815,1704144647387,-2549.16371038,0.00039992,4]
[309796816,1704144647397,-242.8636708,0.00039999,4]
[309796817,1704144647407,-390.58,0.00039999,2]
[309796818,1704144647416,-500.0,0.00039999,7]
[309796819,1704144647426,-285.71605217,0.00039999,7]
[309796820,1704144647437,-600.80952072,0.00039999,7]
[309796821,1704144647447,-500.0,0.00039999,7]
[309796822,1704144647457,-71146.15608827,0.0004,120]
[309796898,1704145650107,-1000.0,0.0003578,7]
[309796899,1704145650128,-751.60561263,0.00035781,4]
[309796900,1704145650148,-154.82968734,0.00035781,4]
[309796901,1704145650169,-194.968321,0.00035791,2]
[309796902,1704145650193,-594.96159528,0.00036433,2]
[309796903,1704145650216,-341.0,0.00036438,2]
[309796904,1704145650237,-1769.99623362,0.00036561,2]
[309796955,1704145834644,-1000.0,0.0003655,7]
[309796956,1704145834654,-390.07,0.00036551,3]
[309796957,1704145834663,-334.79,0.0003656,2]
[309796958,1704145834672,-2815.001968,0.00036561,4]
[309796959,1704145835025,-3110.56135565,0.00036561,4]
[309796960,1704145835035,-76160.80891055,0.00036561,30]
[309796961,1704145835044,-4307.18928516,0.00036561,4]
[309796962,1704145835053,-194.968321,0.00036611,2]
[309796963,1704145835062,-642.85802608,0.0003796,4]
[309796964,1704145835075,-420.5666645,0.0003796,4]
[309796965,1704145835085,-23446.23063243,0.00037961,2]
[309796966,1704145835094,-5000.0,0.00037961,7]
[309796967,1704145835103,-1604.86656585,0.00037961,2]
[309796968,1704145835113,-310.098687,0.00038017,120]
[309796969,1704145835122,-500.0,0.00038356,2]
[309796970,1704145835131,-21474.751497,0.00038528,2]
[309796971,1704145835140,-158.55039496,0.00038701,10]
[309796972,1704145835152,-155.0,0.000389,2]
[309796973,1704145835162,-214.43757396,0.00039,2]
[309796974,1704145835171,-391.0,0.00039753,2]
[309796975,1704145835180,-11669.13503842,0.0003988,2]
[309796976,1704145835190,-322.49057975,0.00039897,4]
[309796977,1704145835199,-1944.58932329,0.00039898,4]
[309796978,1704145835209,-155.46798419,0.00039898,4]
[309796979,1704145835219,-559.03167254,0.00039898,4]
[309796980,1704145835228,-385.71481565,0.00039899,7]
[309796981,1704145835237,-180.24285621,0.00039899,7]
[309796982,1704145835246,-231146.68018069,0.000399,2]
[309796983,1704145835256,-1270.83374624,0.00039988,2]
[309796984,1704145835266,-4028.0480772,0.00039998,4]
[309796985,1704145835276,-282.21176052,0.00039998,2]
[309796986,1704145835286,-1887.18578765,0.00039999,4]
[309796987,1704145835295,-334.78,0.00039999,2]
[309796988,1704145835304,-334.78,0.00039999,2]
[309796989,1704145835315,-334.78,0.00039999,2]
[309796990,1704145835324,-334.78,0.00039999,2]
[309796991,1704145835333,-334.79,0.00039999,2]
[309796992,1704145835343,-106629.35293003,0.0004,120]
[309797016,1704145837987,-620.45999334,0.00037961,2]
[309797333,1704145845830,-2206.07850633,0.00037961,2]
[309797334,1704145845842,-325.06,0.0003999,3]
[309797335,1704145845852,-67364.12035643,0.0004,120]
[309797336,1704145845863,-1277.46612497,0.0004,4]
[309797337,1704145845873,-1000.0,0.0004,40]
[309797338,1704145845883,-2327.64874924,0.0004,4]
[309797339,1704145845892,-162.532083,0.0004,2]
[309797341,1704145845904,-2000.0,0.0004,19]
[309797343,1704145845914,-200.0,0.0004,4]
[309797345,1704145845924,-2000.0,0.0004001,19]
[309797347,1704145845934,-2000.0,0.0004002,19]
[309797349,1704145845945,-3301.300117,0.0004003,19]
[309797351,1704145845954,-152.70249,0.00040081,2]
[309797352,1704145845963,-5000.0,0.00040084,7]
[309797355,1704145845974,-5000.0,0.00040084,7]
[309797357,1704145845983,-242.42134323,0.0004027,2]
[309797359,1704145845994,-150.0,0.0004047,7]
[309797361,1704145846004,-150.0,0.0004048,7]
[309797363,1704145846015,-150.0,0.0004049,7]
[309797364,1704145846024,-5749.28570823,0.000405,2]
[309797367,1704145846037,-282.21176052,0.000405,2]
[309797369,1704145846050,-23232.81239729,0.000405,2]
[309797371,1704145846059,-2608.0,0.000405,10]
[309797373,1704145846069,-151.0,0.000405,2]
[309797374,1704145846078,-151.0,0.000405,2]
[309797376,1704145846087,-152.70249,0.00040576,2]
[309797378,1704145846098,-2985.792485,0.000406,3]
[309797380,1704145846108,-151.0,0.0004082,21]
[309797382,1704145846118,-4717.42018171,0.00040919,2]
[309797384,1704145846127,-3815.42409872,0.00041,10]
[309797386,1704145846136,-1000.0,0.00041,41]
[309797387,1704145846145,-150.67312408,0.00041029,2]
[309797388,1704145846155,-152.70249,0.0004107,2]
[309797389,1704145846164,-250.0,0.00041095,10]
[309797390,1704145846173,-2510.44167437,0.00041154,4]
[309797391,1704145846183,-152.70249,0.00041491,30]
[309797392,1704145846193,-152.70249,0.00041565,30]
[309797393,1704145846202,-557.52668355,0.00041576,2]
[309797394,1704145846212,-1500.0,0.000416,3]
[309797395,1704145846221,-151.0,0.00041742,21]
[309797396,1704145846230,-266.89877929,0.00041869,4]
[309797397,1704145846239,-1286.999,0.00041898,29]
[309797398,1704145846248,-200.0,0.000419,13]
[309797399,1704145846257,-212.45179469,0.00041956,2]
[309797400,1704145846266,-639.58367856,0.00041992,4]
[309797401,1704145846275,-163.22876926,0.00041994,4]
[309797402,1704145846285,-398.85383859,0.00041994,4]
[309797403,1704145846294,-334.49340901,0.00041994,4]
[309797404,1704145846306,-283.47449946,0.00041994,4]
[309797405,1704145846315,-155.09350475,0.00041994,4]
[309797406,1704145846324,-742.31530417,0.00041994,4]
[309797407,1704145846334,-289.65483466,0.00041994,4]
[309797408,1704145846343,-274.51436189,0.00041994,4]
[309797409,1704145846352,-7236.21775598,0.00041994,14]
[309797410,1704145846361,-332.24752252,0.00041994,4]
[309797411,1704145846370,-154.99349163,0.00041994,4]
[309797412,1704145846380,-200.0,0.00041994,4]
[309797413,1704145846390,-274.63426883,0.00041995,4]
[309797414,1704145846399,-203.9269187,0.00041995,4]
[309797415,1704145846409,-155.38493612,0.00041995,4]
[309797416,1704145846418,-249.86524404,0.00041995,4]
[309797417,1704145846427,-158.21785437,0.00041995,4]
[309797418,1704145846436,-156.71432774,0.00041995,4]
[309797419,1704145846445,-2582.09662554,0.00041995,4]
[309797420,1704145846519,-1364.439554,0.00041996,7]
[309797421,1704145846530,-1364.439554,0.00041996,7]
[309797422,1704145846540,-151.0,0.00041996,7]
[309797423,1704145846550,-151.0,0.00041996,7]
[309797424,1704145846559,-201.25785601,0.00041996,2]
[309797425,1704145846570,-155.37026515,0.00041996,7]
[309797426,1704145846581,-250.07864591,0.00041996,4]
[309797427,1704145846592,-207.9860784,0.00041996,4]
[309797428,1704145846603,-341.0691534,0.00041996,4]
[309797429,1704145846612,-155.36844471,0.00041996,4]
[309797430,1704145846623,-287.65840556,0.00041996,4]
[309797431,1704145846634,-1282.51161699,0.00041996,4]
[309797432,1704145846644,-488.57173973,0.00041996,4]
[309797433,1704145846654,-249.16726154,0.00041996,2]
[309797434,1704145846664,-708.66065843,0.00041996,4]
[309797435,1704145846674,-2328.30973422,0.00041996,4]
[309797436,1704145846684,-2615.90055103,0.00041996,5]
[309797437,1704145846693,-197.47416854,0.00041996,4]
[309797438,1704145846702,-191.4464226,0.00041996,4]
[309797439,1704145846711,-423.60628019,0.00041996,4]
[309797440,1704145846720,-641.2979322,0.00041996,4]
[309797441,1704145846730,-223.2639883,0.00041996,4]
[309797442,1704145846739,-296.7145786,0.00041996,4]
[309797443,1704145846749,-155.20834563,0.00041996,2]
[309797444,1704145846759,-7116.0309365,0.00041996,4]
[309797445,1704145846769,-156.64949059,0.00041996,4]
[309797446,1704145846778,-231.12001718,0.00041996,4]
[309797447,1704145846787,-155.20569947,0.00041996,7]
[309797448,1704145846797,-499.38752932,0.00041996,4]
[309797449,1704145846806,-236.93348906,0.00041996,4]
[309797450,1704145846822,-203.99645896,0.00041996,2]
[309797451,1704145846832,-199.70714084,0.00041996,4]
[309797452,1704145846842,-1583.71081139,0.00041998,4]
[309797453,1704145846851,-14208.88219805,0.00041998,4]
[309797454,1704145846860,-2701.73501351,0.00041998,4]
[309797455,1704145846869,-2094.98073876,0.00041998,4]
[309797456,1704145846878,-1773.14242762,0.00041998,4]
[309797457,1704145846888,-477.96979678,0.00041998,2]
[309797458,1704145846897,-155.05651893,0.00041998,4]
[309797459,1704145846906,-535.58712175,0.00041998,4]
[309797460,1704145846915,-1677.73758043,0.00041998,2]
[309797461,1704145846924,-5472.70912944,0.00041998,4]
[309797462,1704145846934,-250.15317537,0.00042,2]
[309797463,1704145846942,-2000.0,0.00042,2]
[309797464,1704145846951,-2000.0,0.00042,2]
[309797465,1704145846960,-2000.0,0.00042,2]
[309797466,1704145846970,-2000.0,0.00042,2]
[309797467,1704145846979,-2000.0,0.00042,2]
[309797468,1704145846989,-1000.0,0.00042,42]
[309797469,1704145846998,-1364.439554,0.00042,7]
[309797470,1704145847008,-1364.439554,0.00042,7]
[309797471,1704145847017,-1378.01369949,0.00042,10]
[309797472,1704145847025,-257.14321043,0.00042095,30]
[309797473,1704145847034,-1276.54424332,0.000422,30]
[309797474,1704145847043,-500.0,0.00042465,10]
[309797475,1704145847053,-2868.906829,0.000426,28]
[309797476,1704145847061,-1500.0,0.000426,3]
[309797477,1704145847072,-151.0,0.000426,7]
[309797478,1704145847083,-151.0,0.000426,7]
[309797479,1704145847092,-151.0,0.00042637,2]
[309797480,1704145847101,-20921.38564132,0.00042637,2]
[309797481,1704145847110,-151.0,0.00042663,21]
[309797482,1704145847120,-641.26548117,0.00042679,4]
[309797483,1704145847129,-6196.96124621,0.00042688,4]
[309797484,1704145847138,-2628.96396263,0.00042688,4]
[309797485,1704145847149,-156.93587825,0.00042688,30]
[309797486,1704145847159,-1049.82427488,0.00042688,7]
[309797487,1704145847168,-223.45331818,0.00042688,4]
[309797488,1704145847177,-155.16330073,0.00042688,4]
[309797489,1704145847187,-2088.30212049,0.00042688,4]
[309797490,1704145847196,-318.1870602,0.00042689,4]
[309797491,1704145847206,-1425.1,0.00042689,7]
[309797492,1704145847215,-1798.02,0.00042689,7]
[309797493,1704145847224,-390.62,0.00042689,7]
[309797494,1704145847233,-334.78,0.00042689,7]
[309797495,1704145847243,-71294.99846706,0.0004269,7]
[309797510,1704146835103,-271.35243145,0.00024999,2]
[309797511,1704146835124,-870.05,0.00025,2]
[309797512,1704146835145,-1616.90079488,0.00027998,2]
[309797513,1704146835167,-158.84299488,0.000329,2]
[309797514,1704146835189,-686.46024055,0.00033,3]
[309797515,1704146835214,-1147.12438026,0.00034,2]
[309797518,1704146953083,-2857.15278986,0.00034,2]
[309797519,1704146953104,-1000.0,0.00034,7]
[309797520,1704146953123,-5925.56332365,0.00034,4]
[309797521,1704146953143,-2253.99084723,0.00035,3]
[309797522,1704146957116,-6941.18192167,0.00035,3]
[309797571,1704147033376,-1066.13937456,0.00034,4]
[309797741,1704147038339,-2971.83012256,0.00034,4]
[309797742,1704147038348,-109.12310327,0.00035,3]
[309797743,1704147038358,-2255.75257608,0.00036561,4]
[309797744,1704147038367,-268.0,0.00037945,2]
[309797745,1704147038377,-4489.06429074,0.00038006,2]
[309797746,1704147038390,-355.64249156,0.00038006,2]
[309797763,1704147041248,-1039.47098479,0.00038006,2]
[309797776,1704147042972,-318.84326718,0.00038006,2]
[309797777,1704147042981,-1788.66011347,0.00038006,2]
[309797778,1704147042992,-180.10233025,0.00038459,2]
[309797779,1704147043001,-1265.080886,0.00039,10]
[309797780,1704147043013,-640.6181668,0.00039,10]
[309797781,1704147043025,-531.03244389,0.00039,10]
[309797782,1704147043037,-476.36698059,0.00039,10]
[309797783,1704147043047,-238.0,0.00039572,2]
[309797784,1704147043061,-192.32909781,0.000398,2]
[309797803,1704147045985,-3880.0,0.000398,2]
[309797805,1704147045997,-385.82992821,0.000398,2]
[309797806,1704147046007,-1000.0,0.0004038,7]
[309797807,1704147046016,-232.574015,0.00040381,120]
[309797808,1704147046025,-1283.72281256,0.00040588,2]
[309797809,1704147046034,-318.0,0.00041342,4]
[309797810,1704147046043,-1452.94721261,0.00042,10]
[309797811,1704147046052,-505.59251664,0.00042477,6]
[309797812,1704147046061,-160.592,0.00042588,2]
[309797813,1704147046070,-160.592,0.00042589,2]
[309797814,1704147046079,-160.592,0.00042589,2]
[309797815,1704147046088,-160.592,0.0004259,2]
[309797816,1704147046096,-160.592,0.0004259,2]
[309797817,1704147046106,-150.0,0.000426,28]
[309797818,1704147046115,-200.0,0.000426,14]
[309797819,1704147046125,-150.0,0.0004266,60]
[309797820,1704147046134,-150.0,0.0004267,60]
[309797821,1704147046143,-150.0,0.0004268,60]
[309797822,1704147046152,-1277.46612497,0.00042688,4]
[309797823,1704147046162,-449.02577329,0.00042688,4]
[309797824,1704147046171,-349.958,0.00042689,4]
[309797825,1704147046180,-250.0,0.00042689,10]
[309797826,1704147046189,-500.0,0.00042689,4]
[309797827,1704147046198,-180.0,0.00042689,30]
[309797828,1704147046207,-500.0,0.00042689,4]
[309797829,1704147046216,-360.0,0.00042689,4]
[309797830,1704147046225,-500.0,0.00042689,7]
[309797831,1704147046234,-520.0,0.00042689,7]
[309797832,1704147046243,-500.0,0.00042689,30]
[309797833,1704147046253,-879848.76760763,0.0004269,7]
[309797834,1704147046263,-244.69723579,0.000427,30]
[309797835,1704147046274,-23912.79008541,0.000427,2]
[309797836,1704147046283,-150.0,0.00042709,7]
[309797837,1704147046292,-150.0,0.00042709,60]
[309797838,1704147046302,-150.0,0.00042719,7]
[309797839,1704147046311,-150.0,0.00042719,60]
[309797840,1704147046321,-150.0,0.00042729,60]
[309797841,1704147046331,-150.0,0.00042729,7]
[309797842,1704147046341,-150.0,0.00042729,7]
[309797843,1704147046351,-155.1392809,0.00042737,4]
[309797844,1704147046360,-1091.551643,0.00042739,7]
[309797845,1704147046370,-1091.551643,0.00042739,7]
[309797846,1704147046379,-1091.551643,0.00042739,7]
[309797847,1704147046389,-1091.551643,0.00042739,7]
[309797848,1704147046399,-1091.551643,0.00042739,7]
[309797849,1704147046409,-1091.551643,0.00042739,7]
[309797850,1704147046418,-1091.551643,0.00042739,7]
[309797851,1704147046427,-1091.551643,0.00042739,7]
[309797852,1704147046436,-1091.551643,0.00042739,7]
[309797853,1704147046445,-1091.551643,0.00042739,7]
[309797854,1704147046455,-1091.551643,0.00042739,7]
[309797855,1704147046465,-1091.551643,0.00042739,7]
[309797856,1704147046475,-1091.551643,0.00042739,7]
[309797857,1704147046484,-1091.551643,0.00042739,7]
[309797858,1704147046494,-1091.551643,0.00042739,7]
[309797859,1704147046502,-1091.551643,0.00042739,7]
[309797860,1704147046511,-1091.551643,0.00042739,7]
[309797861,1704147046520,-1091.551643,0.00042739,7]
[309797862,1704147046532,-1091.551643,0.00042739,7]
[309797863,1704147046542,-1091.551647,0.00042739,7]
[309797864,1704147046552,-151.0,0.00042739,2]
[309797865,1704147046561,-151.0,0.00042739,2]
[309797866,1704147046570,-151.0,0.00042739,2]
[309797867,1704147046579,-151.0,0.00042739,2]
[309797868,1704147046589,-151.0,0.00042739,2]
[309797869,1704147046598,-151.0,0.00042739,2]
[309797870,1704147046607,-151.0,0.00042739,2]
[309797871,1704147046616,-274.95127993,0.00042739,2]
[309797872,1704147046626,-151.0,0.00042739,7]
[309797873,1704147046635,-151.0,0.00042739,7]
[309797874,1704147046644,-151.0,0.00042739,7]
[309797875,1704147046656,-151.0,0.00042739,7]
[309797876,1704147046665,-151.0,0.00042739,7]
[309797877,1704147046675,-151.0,0.00042739,7]
[309797878,1704147046685,-151.0,0.00042739,7]
[309797879,1704147046694,-151.0,0.00042739,7]
[309797880,1704147046703,-151.0,0.00042739,7]
[309797881,1704147046713,-232.148886,0.00042739,7]
[309797882,1704147046722,-505.18808205,0.00042739,7]
[309797883,1704147046731,-500.0,0.00042739,7]
[309797884,1704147046740,-500.0,0.00042739,7]
[309797885,1704147046750,-154.40627766,0.00042739,7]
[309797886,1704147046764,-422.02683953,0.00042739,7]
[309797887,1704147046773,-509.39988582,0.00042739,7]
[309797888,1704147046783,-503.49406965,0.00042739,7]
[309797889,1704147046792,-506.4131046,0.00042739,7]
[309797890,1704147046801,-501.83090295,0.00042739,7]
[309797891,1704147046810,-383.85885119,0.00042739,7]
[309797892,1704147046819,-500.43542592,0.00042739,7]
[309797893,1704147046828,-500.93372966,0.00042739,7]
[309797894,1704147046837,-500.0,0.00042739,7]
[309797895,1704147046847,-595.62094996,0.00042739,7]
[309797896,1704147046856,-500.0,0.00042739,7]
[309797897,1704147046865,-312.23522694,0.00042739,7]
[309797898,1704147046874,-236.47190987,0.00042739,7]
[309797899,1704147046884,-1142.36,0.00042739,7]
[309797900,1704147046893,-1142.36,0.00042739,7]
[309797901,1704147046901,-1142.36,0.00042739,7]
[309797902,1704147046911,-1142.36,0.00042739,7]
[309797903,1704147046920,-1142.36,0.00042739,7]
[309797904,1704147046929,-1142.36,0.00042739,7]
[309797905,1704147046939,-1142.36,0.00042739,7]
[309797906,1704147046948,-1142.36,0.00042739,7]
[309797907,1704147046958,-1142.36,0.00042739,7]
[309797908,1704147046967,-1142.36,0.00042739,7]
[309797909,1704147046977,-1142.36,0.00042739,7]
[309797910,1704147046986,-1142.36,0.00042739,7]
[309797911,1704147047051,-1142.36,0.00042739,7]
[309797912,1704147047072,-1142.36,0.00042739,7]
[309797913,1704147047082,-1142.36,0.00042739,7]
[309797914,1704147047091,-1142.36,0.00042739,7]
[309797915,1704147047100,-1142.36,0.00042739,7]
[309797916,1704147047110,-1142.36,0.00042739,7]
[309797917,1704147047119,-1142.36,0.00042739,7]
[309797918,1704147047129,-1142.36,0.00042739,7]
[309797919,1704147047139,-1142.36,0.00042739,7]
[309797920,1704147047148,-1142.36,0.00042739,7]
[309797921,1704147047158,-1142.36,0.00042739,7]
[309797922,1704147047167,-1142.57167983,0.00042739,7]
[309797923,1704147047176,-1964.89,0.00042739,7]
[309797924,1704147047185,-1964.89,0.00042739,7]
[309797925,1704147047194,-1964.89,0.00042739,7]
[309797926,1704147047203,-1964.89,0.00042739,7]
[309797927,1704147047213,-1964.89,0.00042739,7]
[309797928,1704147047222,-1964.89,0.00042739,7]
[309797929,1704147047231,-1964.89,0.00042739,7]
[309797930,1704147047240,-1964.89,0.00042739,7]
[309797931,1704147047250,-1964.89,0.00042739,7]
[309797932,1704147047259,-500.0,0.00042739,7]
[309797933,1704147047276,-1964.89,0.00042739,7]
[309797934,1704147047291,-501.76810516,0.00042739,7]
[309797935,1704147047301,-1964.89,0.00042739,7]
[309797936,1704147047310,-1964.89,0.00042739,7]
[309797937,1704147047320,-1964.89,0.00042739,7]
[309797938,1704147047330,-1964.89,0.00042739,7]
[309797939,1704147047339,-1964.89,0.00042739,7]
[309797940,1704147047349,-1964.89,0.00042739,7]
[309797941,1704147047358,-1964.89,0.00042739,7]
[309797942,1704147047368,-1964.89,0.00042739,7]
[309797943,1704147047378,-1964.89,0.00042739,7]
[309797944,1704147047387,-1964.89,0.00042739,7]
[309797945,1704147047397,-1964.89,0.00042739,7]
[309797946,1704147047407,-1964.89,0.00042739,7]
[309797947,1704147047417,-1964.89,0.00042739,7]
[309797948,1704147047427,-1965.11314815,0.00042739,7]
[309797949,1704147047437,-559.59243936,0.00042739,7]
[309797950,1704147047446,-500.0,0.00042739,7]
[309797951,1704147047456,-500.0,0.00042739,7]
[309797952,1704147047465,-500.0,0.00042739,7]
[309797953,1704147047475,-350.37054139,0.00042739,7]
[309797954,1704147047485,-500.0,0.00042739,7]
[309797955,1704147047495,-500.0,0.00042739,7]
[309797956,1704147047505,-393.59300149,0.00042739,7]
[309797957,1704147047515,-462.84194486,0.00042739,7]
[309797958,1704147047527,-591.27,0.00042739,7]
[309797959,1704147047538,-591.27,0.00042739,7]
[309797960,1704147047547,-591.27,0.00042739,7]
[309797961,1704147047559,-591.27,0.00042739,7]
[309797962,1704147047569,-591.27,0.00042739,7]
[309797963,1704147047579,-591.27,0.00042739,7]
[309797964,1704147047588,-591.27,0.00042739,7]
[309797965,1704147047597,-591.27,0.00042739,7]
[309797966,1704147047607,-591.27,0.00042739,7]
[309797967,1704147047616,-591.27,0.00042739,7]
[309797968,1704147047626,-591.27,0.00042739,7]
[309797969,1704147047635,-591.27,0.00042739,7]
[309797970,1704147047646,-591.27,0.00042739,7]
[309797971,1704147047657,-591.27,0.00042739,7]
[309797972,1704147047667,-591.27,0.00042739,7]
[309797973,1704147047677,-591.27,0.00042739,7]
[309797974,1704147047686,-591.27,0.00042739,7]
[309797975,1704147047697,-591.27,0.00042739,7]
[309797976,1704147047706,-591.27,0.00042739,7]
[309797977,1704147047717,-591.27,0.00042739,7]
[309797978,1704147047727,-591.27,0.00042739,7]
[309797979,1704147047737,-591.27,0.00042739,7]
[309797980,1704147047746,-591.27,0.00042739,7]
[309797981,1704147047756,-591.45,0.00042739,7]
[309797982,1704147047765,-500.0,0.00042739,7]
[309797983,1704147047775,-500.0,0.00042739,7]
[309797984,1704147047785,-500.0,0.00042739,7]
[309797985,1704147047794,-1310.18,0.00042739,7]
[309797986,1704147047804,-1310.18,0.00042739,7]
[309797987,1704147047813,-1310.18,0.00042739,7]
[309797988,1704147047822,-1310.18,0.00042739,7]
[309797989,1704147047831,-1310.18,0.00042739,7]
[309797990,1704147047841,-1310.18,0.00042739,7]
[309797991,1704147047850,-1310.18,0.00042739,7]
[309797992,1704147047859,-1310.18,0.00042739,7]
[309797993,1704147047868,-1310.18,0.00042739,7]
[309797994,1704147047878,-1310.18,0.00042739,7]
[309797995,1704147047887,-1310.18,0.00042739,7]
[309797996,1704147047896,-1310.18,0.00042739,7]
[309797997,1704147047905,-1310.18,0.00042739,7]
[309797998,1704147047915,-1310.18,0.00042739,7]
[309797999,1704147047924,-1310.18,0.00042739,7]
[309798000,1704147047933,-1310.18,0.00042739,7]
[309798001,1704147047942,-1310.18,0.00042739,7]
[309798002,1704147047951,-1310.18,0.00042739,7]
[309798003,1704147047960,-1310.18,0.00042739,7]
[309798004,1704147047969,-1310.18,0.00042739,7]
[309798005,1704147047978,-1310.18,0.00042739,7]
[309798006,1704147047987,-1310.18,0.00042739,7]
[309798007,1704147047996,-1310.18,0.00042739,7]
[309798008,1704147048005,-1310.29738257,0.00042739,7]
[309798009,1704147048014,-500.0,0.00042739,7]
[309798010,1704147048024,-500.0,0.00042739,7]
[309798011,1704147048033,-500.0,0.00042739,7]
[309798012,1704147048042,-500.0,0.00042739,7]
[309798013,1704147048051,-500.0,0.00042739,7]
[309798014,1704147048060,-160.9762552,0.00042739,7]